fUST/lending_fUST_20250411
["ID","MTS","AMOUNT","RATE_DAILY","PERIOD"]
[357725569,1744383157746,-540.92525081,0.0004932,120]
[357725570,1744383157756,-540.92,0.0004932,120]
[357725571,1744383157765,-1262.15891855,0.0004932,120]
[357725572,1744383157777,-1262.15891855,0.0004932,120]
[357725573,1744383157788,-1262.15891855,0.0004932,120]
[357725574,1744383157799,-1262.15891855,0.0004932,120]
[357725575,1744383157812,-1262.15891855,0.0004932,120]
[357725576,1744383157822,-1262.15891855,0.0004932,120]
[357725577,1744383157832,-1262.15891855,0.0004932,120]
[357725578,1744383157842,-1262.15891855,0.0004932,120]
[357725579,1744383157852,-1262.15891855,0.0004932,120]
[357725580,1744383157862,-1262.15891855,0.0004932,120]
[357725581,1744383157872,-1262.15891855,0.0004932,120]
[357725582,1744383157882,-1262.15891855,0.0004932,120]
[357725583,1744383157893,-1262.15891855,0.0004932,120]
[357725584,1744383157903,-1262.15891855,0.0004932,120]
[357725585,1744383157914,-1262.15891855,0.0004932,120]
[357725586,1744383157923,-1262.15891855,0.0004932,120]
[357725587,1744383157935,-1262.15891855,0.0004932,120]
[357725588,1744383157945,-1262.15891855,0.0004932,120]
[357725589,1744383157955,-1262.15891855,0.0004932,120]
[357725590,1744383157965,-1262.15,0.0004932,120]
[357725591,1744383157976,-292.06467408,0.0004932,120]
[357725592,1744383157986,-292.06467408,0.0004932,120]
[357725593,1744383157996,-292.06467408,0.0004932,120]
[357725594,1744383158006,-292.06467408,0.0004932,120]
[357725595,1744383158016,-292.06467408,0.0004932,120]
[357725596,1744383158026,-292.06467408,0.0004932,120]
[357725597,1744383158035,-292.06467408,0.0004932,120]
[357725598,1744383158045,-292.06467408,0.0004932,120]
[357725599,1744383158056,-292.06467408,0.0004932,120]
[357725600,1744383158066,-292.06467408,0.0004932,120]
[357725601,1744383158076,-292.06467408,0.0004932,120]
[357725602,1744383158086,-292.06467408,0.0004932,120]
[357725603,1744383158096,-292.06467408,0.0004932,120]
[357725604,1744383158106,-292.06467408,0.0004932,120]
[357725605,1744383158116,-292.06467408,0.0004932,120]
[357725606,1744383158126,-292.06467408,0.0004932,120]
[357725607,1744383158136,-292.06467408,0.0004932,120]
[357725608,1744383158145,-292.06467408,0.0004932,120]
[357725609,1744383158155,-292.06467408,0.0004932,120]
[357725610,1744383158165,-292.06,0.0004932,120]
[357725611,1744383158175,-681.48423952,0.0004932,120]
[357725612,1744383158186,-681.48423952,0.0004932,120]
[357725613,1744383158195,-681.48423952,0.0004932,120]
[357725614,1744383158205,-681.48423952,0.0004932,120]
[357725615,1744383158215,-681.48423952,0.0004932,120]
[357725616,1744383158225,-681.48423952,0.0004932,120]
[357725617,1744383158235,-681.48423952,0.0004932,120]
[357725618,1744383158245,-681.48423952,0.0004932,120]
[357725619,1744383158254,-681.48423952,0.0004932,120]
[357725620,1744383158264,-681.48423952,0.0004932,120]
[357725621,1744383158274,-681.48423952,0.0004932,120]
[357725622,1744383158283,-681.48423952,0.0004932,120]
[357725623,1744383158293,-681.48423952,0.0004932,120]
[357725624,1744383158305,-681.48423952,0.0004932,120]
[357725625,1744383158314,-681.48423952,0.0004932,120]
[357725626,1744383158323,-681.48423952,0.0004932,120]
[357725627,1744383158333,-681.48423952,0.0004932,120]
[357725628,1744383158342,-681.48423952,0.0004932,120]
[357725629,1744383158352,-681.48423952,0.0004932,120]
[357725630,1744383158361,-681.48,0.0004932,120]
[357725631,1744383158371,-31274.29443023,0.000498,61]
[357725632,1744383158380,-1333.0,0.00049863,30]
[357725633,1744383158390,-200.0,0.0005,14]
[357725634,1744383158399,-430.08,0.0005,2]
[357725635,1744383158408,-200.0,0.0005,120]
[357725636,1744383158418,-435.3274584,0.0005,2]
[357725637,1744383158427,-217.77622562,0.0005,30]
[357725638,1744383158436,-243.28,0.0005,120]
[357725639,1744383158446,-287.0,0.0005,30]
[357725640,1744383158455,-50000.0,0.0005,60]
[357725641,1744383158465,-50000.0,0.0005,60]
[357725642,1744383158475,-1000.0,0.0005,120]
[357725643,1744383158484,-1000.0,0.0005,120]
[357725644,1744383158493,-764.62,0.0005,120]
[357725645,1744383158503,-1203.0,0.0005,120]
[357725646,1744383158512,-160.0,0.0005,3]
[357725647,1744383158521,-419.71244257,0.0005,10]
[357725648,1744383158531,-200.0,0.00050168,120]
[357725649,1744383158540,-200.0,0.0005078,84]
[357725650,1744383158550,-238.3375,0.0005085,120]
[357725651,1744383158559,-400.2305,0.0005085,120]
[357725652,1744383158569,-2000.0,0.00051,8]
[357725653,1744383158578,-644.51605735,0.00051,120]
[357725654,1744383158588,-3000.0,0.00051,85]
[357725655,1744383158597,-3000.0,0.0005101,85]
[357725656,1744383158606,-3000.0,0.0005102,85]
[357725657,1744383158615,-3000.0,0.0005103,85]
[357725658,1744383158625,-3000.0,0.0005104,85]
[357725659,1744383158634,-3000.0,0.0005105,85]
[357725660,1744383158643,-3000.0,0.0005106,85]
[357725661,1744383158652,-5969.821326,0.0005107,85]
[357725662,1744383158661,-200.0,0.00051223,14]
[357725663,1744383158671,-262.42607202,0.00051223,14]
[357725664,1744383158681,-280.27011,0.000517,120]
[357725665,1744383158691,-200.0,0.000517,120]
[357725666,1744383158706,-151.0,0.00051808,120]
[357725667,1744383158715,-299.24712614,0.000519,120]
[357725668,1744383158725,-200.0,0.00052,120]
[357725669,1744383158735,-1423.06741263,0.00052,120]
[357725670,1744383158746,-1203.0,0.00052,120]
[357725671,1744383158757,-500.0,0.00052054,120]
[357725672,1744383158768,-500.0,0.00052054,120]
[357725673,1744383158779,-500.0,0.00052054,120]
[357725674,1744383158790,-497.94043613,0.00052054,120]
[357725675,1744383158800,-361.52194769,0.00052054,120]
[357725676,1744383158810,-1333.0,0.00052164,14]
[357725677,1744383158819,-1228.07052454,0.00052445,10]
[357725678,1744383158829,-413.24981476,0.00052445,10]
[357725679,1744383158839,-2000.0,0.00052445,10]
[357725680,1744383158850,-2000.0,0.00052445,10]
[357725681,1744383158859,-2000.0,0.00052445,10]
[357725682,1744383158870,-2000.0,0.00052445,10]
[357725683,1744383158880,-2000.0,0.00052445,10]
[357725684,1744383158889,-2000.0,0.00052445,10]
[357725685,1744383158899,-1084.31617268,0.00052676,120]
[357725686,1744383158909,-1501.76491871,0.00053145,10]
[357725687,1744383158918,-2000.0,0.00053145,10]
[357725688,1744383158928,-200.0,0.0005328,91]
[357725689,1744383158938,-963.23376878,0.00053345,10]
[357725690,1744383158947,-2000.0,0.00053345,10]
[357725691,1744383158957,-1552.40346552,0.00053345,10]
[357725692,1744383158968,-2000.0,0.00053345,10]
[357725693,1744383158977,-2000.0,0.00053345,10]
[357725694,1744383158987,-3000.0,0.000535,120]
[357725695,1744383158997,-2000.0,0.00054,8]
[357725696,1744383159006,-200.0,0.00054,120]
[357725697,1744383159017,-1000.0,0.00054,120]
[357725698,1744383159027,-1115.08891538,0.00054,120]
[357725699,1744383159037,-679.79953039,0.00054,120]
[357725700,1744383159047,-1350.45222632,0.00054,120]
[357725701,1744383159061,-1203.0,0.00054,120]
[357725702,1744383159071,-200.0,0.000542,120]
[357725703,1744383159081,-500000.0,0.0005444,30]
[357725704,1744383159091,-1333.0,0.00054466,90]
[357725705,1744383159101,-3000.0,0.000545,120]
[357725706,1744383159111,-3000.0,0.000545,120]
[357725707,1744383159121,-188.0,0.00054794,120]
[357725708,1744383159132,-188.0,0.00054794,120]
[357725709,1744383159141,-188.0,0.00054794,120]
[357725710,1744383159152,-188.0,0.00054794,120]
[357725711,1744383159162,-188.0,0.00054794,120]
[357725712,1744383159172,-188.0,0.00054794,120]
[357725713,1744383159182,-188.0,0.00054794,120]
[357725714,1744383159192,-188.0,0.00054794,120]
[357725715,1744383159201,-188.0,0.00054794,120]
[357725716,1744383159211,-188.0,0.00054794,120]
[357725717,1744383159221,-188.0,0.00054794,120]
[357725718,1744383159232,-188.0,0.00054794,120]
[357725719,1744383159242,-188.0,0.00054794,120]
[357725720,1744383159252,-188.0,0.00054794,120]
[357725721,1744383159262,-216.73385804,0.00054794,120]
[357725722,1744383159272,-151.0,0.00054795,120]
[357725723,1744383159282,-156.308423,0.00054795,120]
[357725724,1744383159291,-7275.96,0.00054795,10]
[357725725,1744383159302,-6063.3,0.00054795,10]
[357725726,1744383159312,-156.47724623,0.000549,120]
[357725727,1744383159322,-1246.0,0.00055,2]
[357725728,1744383159332,-200.0,0.00055,14]
[357725729,1744383159342,-545.84571309,0.00055,120]
[357725730,1744383159352,-643.2842835,0.00055,120]
[357725731,1744383159362,-280.73974111,0.00055,120]
[357725732,1744383159373,-369.78091924,0.00055342,14]
[357725733,1744383159385,-400.2305,0.00055547,120]
[357725734,1744383159395,-200.0,0.0005578,98]
[357725735,1744383159406,-393.92328599,0.0005588,30]
[357725736,1744383159417,-200.0,0.00056,120]
[357725737,1744383159427,-1203.0,0.00056,120]
[357725738,1744383159437,-3288.79,0.00056,30]
[357725739,1744383159447,-991.500001,0.00056,30]
[357725740,1744383159457,-3000.0,0.000565,120]
[357725741,1744383159467,-242.22914,0.000567,120]
[357725742,1744383159477,-1333.0,0.00056767,120]
[357725743,1744383159487,-2000.0,0.00057,8]
[357725744,1744383159582,-93802.8,0.000572,30]
[357725745,1744383159592,-200.0,0.00057939,120]
[357725746,1744383159602,-200.0,0.00058,120]
[357725747,1744383159612,-806.17,0.00058,30]
[357725748,1744383159621,-1203.0,0.00058,120]
[357725749,1744383159631,-200.0,0.0005828,105]
[357725750,1744383159640,-1999.97,0.000585,120]
[357725751,1744383159650,-3753.37762112,0.000585,120]
[357725752,1744383159660,-151.0,0.00058603,120]
[357725753,1744383159670,-294.89673408,0.00059068,2]
[357725754,1744383159679,-5000.0,0.0005918,30]
[357725755,1744383159688,-200.0,0.0006,30]
[357725756,1744383159698,-1473.52,0.0006,30]
[357725757,1744383159710,-2245.95,0.0006,30]
[357725758,1744383159720,-327.0,0.0006,120]
[357725759,1744383159730,-167.07188326,0.0006,2]
[357725760,1744383159739,-200.0,0.0006,120]
[357725761,1744383159751,-1203.0,0.0006,120]
[357725762,1744383159761,-400.2305,0.00060244,120]
[357725763,1744383159771,-3000.0,0.000605,120]
[357725764,1744383159783,-200.0,0.0006079,112]
[357725765,1744383159793,-1333.0,0.0006137,120]
[357725766,1744383159802,-200.0,0.00061644,14]
[357725767,1744383159813,-200.0,0.00061644,14]
[357725768,1744383159823,-500.0,0.00061815,120]
[357725769,1744383159832,-200.0,0.00062,120]
[357725770,1744383159841,-1203.0,0.00062,120]
[357725771,1744383159851,-3000.0,0.000625,120]
[357725772,1744383159861,-3000.0,0.000625,120]
[357725773,1744383159871,-348.0,0.0006329,119]
[357725774,1744383159881,-482.29934662,0.00063671,7]
[357725775,1744383159890,-1477.47721384,0.00064,120]
[357725776,1744383159901,-200.0,0.00064,120]
[357725777,1744383159910,-1203.0,0.00064,120]
[357725778,1744383159919,-500.0,0.00064115,101]
[357725779,1744383159929,-500000.0,0.0006444,30]
[357725780,1744383159938,-12667.0,0.00065,120]
[357725781,1744383159948,-1000.0,0.00065,120]
[357725782,1744383159957,-500.0,0.00065068,120]
[357725783,1744383159967,-151.0,0.00065397,120]
[357725784,1744383159976,-238.35760487,0.00065973,2]
[357725785,1744383159985,-200.0,0.00066,120]
[357725786,1744383159994,-500.0,0.00066164,120]
[357725787,1744383160003,-500.0,0.00066438,120]
[357725788,1744383160013,-500.0,0.00066712,120]
[357725789,1744383160022,-500.0,0.00066986,120]
[357725790,1744383160031,-169.656,0.00066986,120]
[357725791,1744383160041,-500.0,0.0006726,120]
[357725792,1744383160049,-3000.0,0.000675,120]
[357725793,1744383160059,-500.0,0.00067808,120]
[357725794,1744383160069,-2500.0,0.00067808,15]
[357725795,1744383160079,-2510.66631261,0.00067808,15]
[357725796,1744383160088,-2500.0,0.00067808,15]
[357725797,1744383160098,-2500.0,0.00067808,14]
[357725798,1744383160107,-390.41674973,0.00067808,14]
[357725799,1744383160116,-2500.0,0.00067808,15]
[357725800,1744383160126,-200.0,0.00068,120]
[357725801,1744383160135,-519.39966682,0.00068219,120]
[357725802,1744383160145,-423.70243494,0.00068274,7]
[357725803,1744383160155,-500.0,0.00068356,120]
[357725804,1744383160164,-500.0,0.00068493,120]
[357725805,1744383160174,-1000.0,0.000685,120]
[357725806,1744383160184,-2500.0,0.00068508,15]
[357725807,1744383160194,-2500.0,0.00068708,15]
[357725808,1744383160205,-264.91152467,0.00068708,14]
[357725809,1744383160216,-2500.0,0.00068708,15]
[357725810,1744383160226,-93802.8,0.000688,30]
[357725811,1744383160236,-500.0,0.00068904,120]
[357725812,1744383160246,-50000.0,0.00069,30]
[357725813,1744383160254,-3000.0,0.00069,120]
[357725814,1744383160263,-3000.0,0.0006901,120]
[357725815,1744383160272,-3000.0,0.0006902,120]
[357725816,1744383160281,-3000.0,0.0006903,120]
[357725817,1744383160290,-4181.892796,0.0006904,120]
[357725818,1744383160299,-3000.0,0.000694,120]
[357725819,1744383160310,-500.0,0.00069452,120]
[357725820,1744383160319,-500.0,0.0007,120]
[357725821,1744383160329,-200.0,0.0007,30]
[357725822,1744383160339,-300.0,0.0007,120]
[357725823,1744383160348,-435.3274584,0.0007,2]
[357725824,1744383160357,-200.0,0.0007036,120]
[357725825,1744383160367,-500.0,0.00070548,120]
[357725826,1744383160377,-223.60225811,0.00070575,2]
[357725827,1744383160386,-500.0,0.00071096,120]
[357725828,1744383160396,-329.0,0.000714,120]
[357725829,1744383160405,-480.0,0.000716,120]
[357725830,1744383160414,-480.0,0.00071605,120]
[357725831,1744383160423,-500.0,0.00071644,120]
[357725832,1744383160433,-500.0,0.00071918,120]
[357725833,1744383160442,-300.0,0.00072,120]
[357725834,1744383160452,-151.0,0.00072192,120]
[357725835,1744383160462,-390.42628863,0.00072192,120]
[357725836,1744383160473,-1473.52,0.000723,30]
[357725837,1744383160482,-2245.95,0.000723,30]
[357725838,1744383160492,-522.41,0.000723,30]
[357725839,1744383160501,-794.19699744,0.00072877,21]
[357725840,1744383160511,-300.0,0.00074,120]
[357725841,1744383160521,-486.78662718,0.00075178,14]
[357725842,1744383160531,-172.83186449,0.00075514,120]
[357725843,1744383160541,-300.0,0.00076,120]
[357725844,1744383160551,-2000000.0,0.000769,120]
[357725845,1744383160562,-195.38731133,0.00077479,2]
[357725846,1744383160573,-200.0,0.00077641,120]
[357725847,1744383160582,-1500.0,0.00078,120]
[357725848,1744383160591,-400.0,0.00078,120]
[357725849,1744383160601,-3992.89514601,0.00078,120]
[357725850,1744383160611,-93802.8,0.000785,30]
[357725851,1744383160621,-151.0,0.00078986,120]
[357725852,1744383160630,-3000.0,0.000794,120]
[357725853,1744383160640,-192.26617977,0.00079781,2]
[357725854,1744383160650,-200.0,0.0008,30]
[357725855,1744383160659,-200.0,0.0008,120]
[357725856,1744383160668,-500.0,0.0008,120]
[357725857,1744383160678,-1797.988088,0.0008,120]
[357725858,1744383160688,-200.0,0.00080859,120]
[357725859,1744383160700,-189.31691822,0.00082082,2]
[357725860,1744383160711,-541.35835861,0.00082191,60]
[357725861,1744383160721,-200.0,0.00082886,120]
[357725862,1744383160730,-500.0,0.0008413,102]
[357725863,1744383160742,-1333.0,0.00084384,2]
[357725864,1744383160751,-50000.0,0.000847,120]
[357725865,1744383160760,-1473.52,0.000847,60]
[357725866,1744383160770,-2245.95,0.000847,60]
[357725867,1744383160781,-3000.0,0.00085235,60]
[357725868,1744383160791,-3000.0,0.00085235,60]
[357725869,1744383160800,-545.27139459,0.00085235,14]
[357725870,1744383160811,-3000.0,0.00085235,60]
[357725871,1744383160821,-151.0,0.00085781,120]
[357725872,1744383160830,-3000.0,0.00085935,60]
[357725873,1744383160840,-164.00023083,0.00086135,21]
[357725874,1744383160851,-3000.0,0.00086135,15]
[357725875,1744383160860,-480.09498577,0.00088,120]
[357725876,1744383160870,-169.655,0.00088493,120]
[357725877,1744383160879,-2000.0,0.000889,120]
[357725878,1744383160888,-93802.8,0.000894,60]
[357725879,1744383160898,-200.0,0.0009,30]
[357725880,1744383160908,-1000000.0,0.0009,120]
[357725881,1744383160917,-200.0,0.0009,120]
[357725882,1744383160926,-435.3274584,0.0009,2]
[357725883,1744383160936,-391.8,0.000923,120]
[357725884,1744383160946,-151.0,0.00092575,120]
[357725885,1744383160955,-5000.0,0.0009275,120]
[357725886,1744383160964,-6143.24594745,0.0009488,60]
[357725887,1744383160973,-400.0,0.00095,60]
[357725888,1744383160983,-360.0955019,0.00095085,60]
[357725889,1744383160992,-200.0,0.00097114,120]
[357725890,1744383161002,-7062.24724929,0.000975,30]
[357725891,1744383161013,-1473.52,0.000987,60]
[357725892,1744383161022,-2245.95,0.000987,60]
[357725893,1744383161032,-200.0,0.00099051,120]
[357725894,1744383161042,-151.0,0.0009937,120]
[357725895,1744383161053,-420.01,0.00099725,120]
[357725896,1744383161063,-1000.0,0.0009999,120]
[357725897,1744383161073,-2000.0,0.001,120]
[357725898,1744383161087,-300.0,0.001,120]
[357725899,1744383161098,-1134.2517097,0.001,120]
[357725900,1744383161108,-10000.0,0.001,120]
[357725901,1744383161118,-435.3274584,0.001,2]
[357725902,1744383161128,-829.45666649,0.001,120]
[357725903,1744383161138,-1461.02273596,0.001,2]
[357725904,1744383161148,-300.0,0.001,120]
[357725905,1744383161157,-5124.369999,0.001,120]
[357725906,1744383161167,-155.0,0.001,120]
[357725907,1744383161177,-151.0,0.0010189,120]
[357725908,1744383161187,-200.0,0.00102108,120]
[357725909,1744383161197,-440.0,0.0010293,120]
[357725910,1744383161207,-440.0,0.00102935,120]
[357725911,1744383161217,-2200.22022,0.00104,89]
[357725912,1744383161227,-3000.0,0.00104,120]
[357725913,1744383161236,-500.0,0.00104145,103]
[357725914,1744383161247,-3500.0,0.00104504,60]
[357725915,1744383161257,-3500.0,0.00104504,60]
[357725916,1744383161267,-3500.0,0.00104504,60]
[357725917,1744383161277,-3500.0,0.00105204,60]
[357725918,1744383161287,-3500.0,0.00105404,15]
[357725919,1744383161296,-151.0,0.00106164,120]
[357725920,1744383161308,-93802.8,0.00107,60]
[357725921,1744383161318,-5000.0,0.0011,30]
[357725922,1744383161328,-169.655,0.0011,120]
[357725923,1744383161338,-151.0,0.00112959,120]
[357725924,1744383161348,-151.0,0.00119753,120]
[357725925,1744383161357,-5000.0,0.0012,30]
[357725926,1744383161367,-435.3274584,0.0012,2]
[357725927,1744383161377,-25000.0,0.0012,120]
[357725928,1744383161387,-500.0,0.0012416,104]
[357725929,1744383161397,-200.0,0.00124425,120]
[357725930,1744383161407,-4000.0,0.00125453,60]
[357725931,1744383161417,-4000.0,0.00125453,60]
[357725932,1744383161427,-823.12613428,0.00125453,60]
[357725933,1744383161436,-4000.0,0.00126153,60]
[357725934,1744383161446,-4000.0,0.00126353,15]
[357725935,1744383161456,-151.0,0.00126548,120]
[357725936,1744383161465,-1473.52,0.00128,60]
[357725937,1744383161475,-2245.95,0.00128,60]
[357725938,1744383161484,-5000.0,0.0013,30]
[357725939,1744383161494,-435.3274584,0.0013,2]
[357725940,1744383161504,-200.0,0.00130411,120]
[357725941,1744383161514,-151.0,0.00133342,120]
[357725942,1744383161524,-200.0,0.00134416,120]
[357725943,1744383161534,-380.0,0.00135939,120]
[357725944,1744383161544,-295.71663037,0.00135944,120]
[357725945,1744383161555,-347.668556,0.00136986,120]
[357725946,1744383161565,-1000.0,0.00136986,120]
[357725947,1744383161576,-1000.0,0.00136986,120]
[357725948,1744383161586,-1000.0,0.00136986,120]
[357725949,1744383161596,-1000.0,0.00136986,120]
[357725950,1744383161605,-1000.0,0.00136986,120]
[357725951,1744383161616,-1000.0,0.00136986,120]
[357725952,1744383161625,-1000.0,0.00136986,120]
[357725953,1744383161636,-1000.0,0.00136986,120]
[357725954,1744383161646,-1000.0,0.00136986,120]
[357725955,1744383161656,-1000.0,0.00136986,120]
[357725956,1744383161666,-1000.0,0.00136986,120]
[357725957,1744383161676,-1000.0,0.00136986,120]
[357725958,1744383161686,-1000.0,0.00136986,120]
[357725959,1744383161696,-1000.0,0.00136986,120]
[357725960,1744383161711,-1000.0,0.00136986,120]
[357725961,1744383161721,-1000.0,0.00136986,120]
[357725962,1744383161731,-1000.0,0.00136986,120]
[357725963,1744383161741,-1000.0,0.00136986,120]
[357725964,1744383161752,-1000.0,0.00136986,120]
[357725965,1744383161762,-1000.0,0.00136986,120]
[357725966,1744383161771,-151.0,0.00140137,120]
[357725967,1744383161783,-200.0,0.00140931,120]
[357725968,1744383161793,-500.0,0.00144175,105]
[357725969,1744383161803,-347.668556,0.00144196,120]
[357725970,1744383161813,-200.0,0.00146058,120]
[357725971,1744383161823,-151.0,0.00146932,120]
[357725972,1744383161833,-4500.0,0.00147958,120]
[357725973,1744383161843,-4500.0,0.00147958,120]
[357725974,1744383161853,-525.84,0.00148,120]
[357725975,1744383161863,-4500.0,0.00148658,100]
[357725976,1744383161873,-2002.6147577,0.00148858,15]
[357725977,1744383161883,-2000.0,0.0014889,120]
[357725978,1744383161892,-5000.0,0.0015,30]
[357725979,1744383161902,-4000.0,0.0015,120]
[357725980,1744383161912,-233416.80313697,0.0015,120]
[357725981,1744383161922,-347.668556,0.00151406,120]
[357725982,1744383161932,-151.0,0.00153726,120]
[357725983,1744383161942,-200.0,0.00154192,120]
[357725984,1744383161952,-200.0,0.00154462,120]
[357725985,1744383161962,-5000.000001,0.00158,120]
[357725986,1744383161972,-347.668556,0.00158616,120]
[357725987,1744383161982,-151.0,0.00158767,120]
[357725988,1744383161992,-5000.0,0.0016,30]
[357725989,1744383162001,-2953.493,0.0016,71]
[357725990,1744383162012,-151.0,0.00160521,120]
[357725991,1744383162021,-200.0,0.00161555,120]
[357725992,1744383162031,-200.0,0.00162409,120]
[357725993,1744383162041,-200.0,0.00163267,120]
[357725994,1744383162050,-500.0,0.0016419,106]
[357725995,1744383162061,-340.0,0.00164384,120]
[357725996,1744383162072,-340.0,0.00164384,120]
[357725997,1744383162081,-340.0,0.00164384,120]
[357725998,1744383162091,-340.0,0.00164384,120]
[357725999,1744383162101,-340.0,0.00164384,120]
[357726000,1744383162111,-340.0,0.00164384,120]
[357726001,1744383162121,-340.0,0.00164384,120]
[357726002,1744383162131,-340.0,0.00164384,120]
[357726003,1744383162142,-340.0,0.00164384,120]
[357726004,1744383162152,-340.0,0.00164384,120]
[357726005,1744383162162,-340.0,0.00164384,120]
[357726006,1744383162172,-340.0,0.00164384,120]
[357726007,1744383162183,-340.0,0.00164384,120]
[357726008,1744383162194,-340.0,0.00164384,120]
[357726009,1744383162204,-340.0,0.00164384,120]
[357726010,1744383162214,-340.0,0.00164384,120]
[357726011,1744383162225,-340.0,0.00164384,120]
[357726012,1744383162235,-340.0,0.00164384,120]
[357726013,1744383162245,-340.0,0.00164384,120]
[357726014,1744383162255,-340.0,0.00164384,120]
[357726015,1744383162265,-340.0,0.00164384,120]
[357726016,1744383162275,-340.0,0.00164384,120]
[357726017,1744383162285,-340.0,0.00164384,120]
[357726018,1744383162295,-340.0,0.00164384,120]
[357726019,1744383162305,-340.0,0.00164384,120]
[357726020,1744383162314,-340.0,0.00164384,120]
[357726021,1744383162324,-340.0,0.00164384,120]
[357726022,1744383162334,-340.0,0.00164384,120]
[357726023,1744383162344,-340.0,0.00164384,120]
[357726024,1744383162354,-340.0,0.00164384,120]
[357726025,1744383162363,-340.0,0.00164384,120]
[357726026,1744383162374,-340.0,0.00164384,120]
[357726027,1744383162384,-340.0,0.00164384,120]
[357726028,1744383162394,-340.0,0.00164384,120]
[357726029,1744383162404,-340.0,0.00164384,120]
[357726030,1744383162414,-340.0,0.00164384,120]
[357726031,1744383162424,-340.0,0.00164384,120]
[357726032,1744383162434,-340.0,0.00164384,120]
[357726033,1744383162444,-340.0,0.00164384,120]
[357726034,1744383162455,-340.0,0.00164384,120]
[357726035,1744383162464,-340.0,0.00164384,120]
[357726036,1744383162474,-340.0,0.00164384,120]
[357726037,1744383162484,-340.0,0.00164384,120]
[357726038,1744383162494,-340.0,0.00164384,120]
[357726039,1744383162504,-340.0,0.00164384,120]
[357726040,1744383162514,-340.0,0.00164384,120]
[357726041,1744383162524,-340.0,0.00164384,120]
[357726042,1744383162534,-340.0,0.00164384,120]
[357726043,1744383162544,-340.0,0.00164384,120]
[357726044,1744383162554,-340.0,0.00164384,120]
[357726045,1744383162564,-340.0,0.00164384,120]
[357726046,1744383162574,-340.0,0.00164384,120]
[357726047,1744383162584,-340.0,0.00164384,120]
[357726048,1744383162593,-340.0,0.00164384,120]
[357726049,1744383162603,-340.0,0.00164384,120]
[357726050,1744383162612,-340.0,0.00164384,120]
[357726051,1744383162622,-340.0,0.00164384,120]
[357726052,1744383162632,-340.0,0.00164384,120]
[357726053,1744383162641,-340.0,0.00164384,120]
[357726054,1744383162651,-340.0,0.00164384,120]
[357726055,1744383162661,-340.0,0.00164384,120]
[357726056,1744383162671,-340.0,0.00164384,120]
[357726057,1744383162681,-340.0,0.00164384,120]
[357726058,1744383162692,-340.0,0.00164384,120]
[357726059,1744383162705,-340.0,0.00164384,120]
[357726060,1744383162716,-340.0,0.00164384,120]
[357726061,1744383162726,-340.0,0.00164384,120]
[357726062,1744383162736,-340.0,0.00164384,120]
[357726063,1744383162747,-340.0,0.00164384,120]
[357726064,1744383162757,-340.0,0.00164384,120]
[357726065,1744383162767,-340.0,0.00164384,120]
[357726066,1744383162777,-340.0,0.00164384,120]
[357726067,1744383162787,-340.0,0.00164384,120]
[357726068,1744383162797,-340.0,0.00164384,120]